[Event "44th Chess Olympiad Women 2022"]
[Site "Chennai"]
[Date "2022.07.29"]
[Round "1.47"]
[White "Guindy, Esmat Susanne"]
[Black "Jacobs, Annelaine"]
[Result "1-0"]
[WhiteElo "2097"]
[BlackElo "1612"]
[Annotator "NA RC"]
[PlyCount "77"]
[EventDate "2022.??.??"]
[TimeControl "60"]

1. d4 {[%emt 0:00:05]} d6 {[%emt 0:00:05]} 2. Nf3 {[%emt 0:00:26]} g6 {[%emt 0:
00:00]} 3. g3 {[%emt 0:00:40]} Bg7 {[%emt 0:00:16]} 4. Bg2 {[%emt 0:00:20]} e5
{[%emt 0:01:41]} 5. dxe5 {[%emt 0:03:46]} dxe5 {[%emt 0:00:13]} 6. Qxd8+ {
[%emt 0:00:12]} Kxd8 {[%emt 0:00:07]} 7. Ng5 {[%emt 0:02:41]} Ke7 {[%emt 0:00:
00]} 8. b3 {[%emt 0:14:13]} h6 {[%emt 0:12:16]} 9. Ba3+ {[%emt 0:02:18]} Ke8 {
[%emt 0:00:47]} 10. Ne4 {[%emt 0:03:29]} Nd7 {[%emt 0:09:58]} 11. O-O {[%emt 0:
00:00]} f5 {[%emt 0:08:38]} 12. Nc5 {[%emt 0:09:47]} Nxc5 {[%emt 0:00:46]} 13.
Bxc5 {[%emt 0:00:09]} e4 {[%emt 0:05:24]} 14. c3 {[%emt 0:00:10]} Ne7 {[%emt 0:
00:00]} 15. Bd4 {[%emt 0:01:10]} Kf7 {[%emt 0:01:30]} 16. Na3 {[%emt 0:04:31]}
c6 {[%emt 0:07:30]} 17. Nc4 {[%emt 0:05:11]} Rd8 {[%emt 0:01:04]} 18. Ne5+ {
[%emt 0:14:03]} Bxe5 {[%emt 0:01:56]} 19. Bxe5 {[%emt 0:02:16]} Be6 {[%emt 0:
00:00]} 20. c4 {[%emt 0:05:51]} h5 {[%emt 0:08:31]} 21. f3 {[%emt 0:01:41]}
exf3 {[%emt 0:00:58]} 22. Bxf3 {[%emt 0:00:48]} Kg8 {[%emt 0:07:51]} 23. Rad1 {
[%emt 0:03:38]} Rd7 {[%emt 0:01:49]} 24. Rxd7 {[%emt 0:00:45]} Bxd7 {[%emt 0:
00:00]} 25. Rd1 {[%emt 0:01:32]} Be6 {[%emt 0:00:24]} 26. Rd6 {[%emt 0:04:13]}
Kf7 {[%emt 0:00:03]} 27. Kf2 {[%emt 0:03:04]} Ng8 {[%emt 0:00:18]} 28. e4 {
[%emt 0:03:44]} Re8 {[%emt 0:00:57]} 29. Bd4 {[%emt 0:01:50]} fxe4 {[%emt 0:00:
00]} 30. Bxe4 {[%emt 0:00:56]} Bf5 {[%emt 0:00:44]} 31. Bxf5 {[%emt 0:01:31]}
gxf5 {[%emt 0:00:32]} 32. Rd7+ {[%emt 0:00:34]} Re7 {[%emt 0:00:29]} 33. Rxe7+
{[%emt 0:00:09]} Kxe7 {[%emt 0:00:08]} 34. Bxa7 {[%emt 0:00:09]} Nf6 {[%emt 0:
00:00]} 35. Kf3 {[%emt 0:01:34]} Ng4 {[%emt 0:00:36]} 36. h3 {[%emt 0:00:44]}
Nf6 {[%emt 0:00:49]} 37. Kf4 {[%emt 0:02:49]} Ke6 {[%emt 0:00:06]} 38. Bd4 {
[%emt 0:00:56]} Kf7 {[%emt 0:01:10]} 39. Kxf5 {[%emt 0:00:39]} 1-0

[Event "44th Chess Olympiad Women 2022"]
[Site "Chennai"]
[Date "2022.07.29"]
[Round "1.47"]
[White "Sagastegui, Thamara"]
[Black "Kakulidis, Ellen"]
[Result "0-1"]
[WhiteElo "1362"]
[BlackElo "2057"]
[Annotator "NA RC"]
[PlyCount "114"]
[EventDate "2022.??.??"]
[TimeControl "60"]

1. e4 {[%emt 0:00:03]} c5 {[%emt 0:00:06]} 2. c3 {[%emt 0:00:05]} Nf6 {[%emt 0:
00:00]} 3. e5 {[%emt 0:00:24]} Nd5 {[%emt 0:00:44]} 4. d4 {[%emt 0:00:38]} cxd4
{[%emt 0:00:45]} 5. cxd4 {[%emt 0:00:05]} e6 {[%emt 0:00:50]} 6. Nf3 {[%emt 0:
00:00]} b6 {[%emt 0:00:39]} 7. Bc4 {[%emt 0:02:11]} Ba6 {[%emt 0:01:43]} 8.
Bxa6 {[%emt 0:03:05]} Nxa6 {[%emt 0:00:14]} 9. a3 {[%emt 0:01:00]} Be7 {
[%emt 0:07:09]} 10. Bd2 {[%emt 0:00:45]} Nac7 {[%emt 0:02:02]} 11. Nc3 {
[%emt 0:03:12]} Nxc3 {[%emt 0:01:38]} 12. Bxc3 {[%emt 0:00:06]} O-O {[%emt 0:
00:00]} 13. O-O {[%emt 0:00:48]} Nd5 {[%emt 0:00:16]} 14. Qd2 {[%emt 0:00:38]}
Rc8 {[%emt 0:07:41]} 15. Rac1 {[%emt 0:00:22]} h6 {[%emt 0:06:39]} 16. Qd3 {
[%emt 0:13:38]} Nxc3 {[%emt 0:08:37]} 17. Rxc3 {[%emt 0:00:08]} d6 {[%emt 0:00:
00]} 18. Rfc1 {[%emt 0:04:21]} Qd7 {[%emt 0:11:32]} 19. Qc2 {[%emt 0:06:40]}
Rxc3 {[%emt 0:04:57]} 20. Qxc3 {[%emt 0:00:08]} dxe5 {[%emt 0:03:30]} 21. Nxe5
{[%emt 0:06:53]} Qd6 {[%emt 0:08:47]} 22. Qc7 {[%emt 0:08:45]} Rd8 {[%emt 0:00:
00]} 23. Qxd6 {[%emt 0:02:23]} Bxd6 {[%emt 0:01:42]} 24. Nc6 {[%emt 0:07:59]}
Rd7 {[%emt 0:01:16]} 25. g3 {[%emt 0:02:21]} Rc7 {[%emt 0:02:45]} 26. Rc3 {
[%emt 0:05:47]} Kf8 {[%emt 0:03:55]} 27. Nb4 {[%emt 0:03:29]} Rxc3 {[%emt 0:00:
00]} 28. bxc3 {[%emt 0:00:10]} a5 {[%emt 0:00:13]} 29. Nc2 {[%emt 0:01:48]} b5
{[%emt 0:00:24]} 30. Kf1 {[%emt 0:02:23]} Ke7 {[%emt 0:00:16]} 31. Ke2 {
[%emt 0:00:30]} Kd7 {[%emt 0:00:46]} 32. Kd3 {[%emt 0:02:43]} Kc6 {[%emt 0:00:
00]} 33. c4 {[%emt 0:01:16]} bxc4+ {[%emt 0:01:04]} 34. Kxc4 {[%emt 0:00:08]}
a4 {[%emt 0:03:15]} 35. Nb4+ {[%emt 0:07:55]} Kb6 {[%emt 0:00:49]} 36. d5 {
[%emt 0:12:01]} e5 {[%emt 0:01:34]} 37. f3 {[%emt 0:01:36]} h5 {[%emt 0:02:35]}
38. Kd3 {[%emt 0:01:26]} Kc5 {[%emt 0:03:36]} 39. Kc3 {[%emt 0:00:34]} f6 {
[%emt 0:00:45]} 40. Kd3 {[%emt 0:00:32]} g5 {[%emt 0:01:29]} 41. Kc3 {[%emt 0:
00:00]} g4 {[%emt 0:10:38]} 42. fxg4 {[%emt 0:00:00]} hxg4 {[%emt 0:00:03]} 43.
Nc2 {[%emt 0:00:00]} Kxd5 {[%emt 0:01:26]} 44. Ne3+ {[%emt 0:00:00]} Ke6 {
[%emt 0:01:01]} 45. Kc4 {[%emt 0:00:00]} Bxa3 {[%emt 0:01:52]} 46. Nxg4 {
[%emt 0:00:00]} f5 {[%emt 0:12:06]} 47. Nf2 {[%emt 0:00:00]} Bd6 {[%emt 0:00:
00]} 48. g4 {[%emt 0:00:00]} fxg4 {[%emt 0:02:46]} 49. Nxg4 {[%emt 0:00:00]}
Kf5 {[%emt 0:00:06]} 50. h3 {[%emt 0:00:25]} Kf4 {[%emt 0:00:38]} 51. Nf6 {
[%emt 0:01:19]} e4 {[%emt 0:03:12]} 52. Nd5+ {[%emt 0:01:08]} Ke5 {[%emt 0:00:
00]} 53. Ne3 {[%emt 0:01:03]} a3 {[%emt 0:00:50]} 54. Kb3 {[%emt 0:00:04]} Kf4
{[%emt 0:00:34]} 55. Nc2 {[%emt 0:02:50]} e3 {[%emt 0:01:05]} 56. Kc3 {[%emt 0:
00:00]} Be5+ {[%emt 0:00:36]} 57. Kd3 {[%emt 0:00:05]} a2 {[%emt 0:01:19]} 0-1

[Event "44th Chess Olympiad Women 2022"]
[Site "Chennai"]
[Date "2022.07.29"]
[Round "1.48"]
[White "Ayzenberg, Alena"]
[Black "Sy, Mariama"]
[Result "1-0"]
[WhiteElo "2023"]
[BlackElo "1211"]
[Annotator "NA"]
[PlyCount "39"]
[EventDate "2022.??.??"]
[TimeControl "60"]

1. d4 {[%emt 0:00:04]} d5 {[%emt 0:00:10]} 2. c4 {[%emt 0:00:07]} Nf6 {[%emt 0:
00:00]} 3. cxd5 {[%emt 0:00:32]} Nxd5 {[%emt 0:00:30]} 4. Nf3 {[%emt 0:02:11]}
Nc6 {[%emt 0:02:44]} 5. e4 {[%emt 0:02:39]} Nf6 {[%emt 0:02:36]} 6. d5 {
[%emt 0:12:59]} Nb4 {[%emt 0:02:45]} 7. Qa4+ {[%emt 0:02:58]} Nc6 {[%emt 0:00:
00]} 8. dxc6 {[%emt 0:00:59]} bxc6 {[%emt 0:00:35]} 9. Ne5 {[%emt 0:08:33]} Bb7
{[%emt 0:05:21]} 10. Qb3 {[%emt 0:04:02]} Qb8 {[%emt 0:03:05]} 11. Nxf7 {
[%emt 0:08:04]} Rg8 {[%emt 0:02:02]} 12. Ng5 {[%emt 0:00:39]} Nd5 {[%emt 0:00:
00]} 13. exd5 {[%emt 0:05:31]} cxd5 {[%emt 0:00:24]} 14. Qf3 {[%emt 0:02:05]}
Rh8 {[%emt 0:05:42]} 15. Qf7+ {[%emt 0:00:20]} Kd7 {[%emt 0:04:36]} 16. Qe6+ {
[%emt 0:04:08]} Ke8 {[%emt 0:04:14]} 17. Bb5+ {[%emt 0:00:41]} c6 {[%emt 0:00:
00]} 18. Bxc6+ {[%emt 0:00:24]} Bxc6 {[%emt 0:00:26]} 19. Qxc6+ {[%emt 0:00:08]
} Kd8 {[%emt 0:33:15]} 20. Nf7# {[%emt 0:00:14]} 1-0

[Event "44th Chess Olympiad Women 2022"]
[Site "Chennai"]
[Date "2022.07.29"]
[Round "1.48"]
[White "Machlik, Edit"]
[Black "Marochkina, Nadezhda Valerevna"]
[Result "1-0"]
[WhiteElo "2084"]
[BlackElo "1687"]
[Annotator "NA RC"]
[PlyCount "62"]
[EventDate "2022.??.??"]
[TimeControl "60"]

1. d4 {[%emt 0:00:03]} d5 {[%emt 0:00:08]} 2. c4 {[%emt 0:00:06]} e6 {[%emt 0:
00:00]} 3. Nc3 {[%emt 0:00:19]} Nf6 {[%emt 0:00:32]} 4. cxd5 {[%emt 0:00:08]}
exd5 {[%emt 0:00:30]} 5. Bg5 {[%emt 0:00:15]} Be7 {[%emt 0:00:52]} 6. e3 {
[%emt 0:00:22]} c6 {[%emt 0:00:44]} 7. Qc2 {[%emt 0:00:19]} Nbd7 {[%emt 0:00:
00]} 8. Bd3 {[%emt 0:00:44]} Nf8 {[%emt 0:02:52]} 9. h3 {[%emt 0:03:59]} Ne6 {
[%emt 0:04:38]} 10. Bh4 {[%emt 0:04:16]} g6 {[%emt 0:04:29]} 11. Nf3 {[%emt 0:
00:00]} Ng7 {[%emt 0:03:39]} 12. O-O {[%emt 0:01:17]} O-O {[%emt 0:01:49]} 13.
Bxf6 {[%emt 0:12:30]} Bxf6 {[%emt 0:00:11]} 14. b4 {[%emt 0:00:08]} Nf5 {
[%emt 0:09:09]} 15. b5 {[%emt 0:07:26]} cxb5 {[%emt 0:05:41]} 16. Nxb5 {
[%emt 0:04:21]} Bd7 {[%emt 0:06:43]} 17. Qb3 {[%emt 0:04:48]} Ne7 {[%emt 0:00:
00]} 18. Rfc1 {[%emt 0:05:30]} Bc6 {[%emt 0:12:17]} 19. Nc3 {[%emt 0:04:19]} a6
{[%emt 0:02:08]} 20. Ne1 {[%emt 0:07:19]} Qa5 {[%emt 0:10:21]} 21. a4 {[%emt 0:
00:00]} Rfd8 {[%emt 0:08:41]} 22. Be2 {[%emt 0:01:22]} Nc8 {[%emt 0:04:12]} 23.
Nd3 {[%emt 0:04:00]} Be7 {[%emt 0:04:01]} 24. Bf3 {[%emt 0:02:22]} Nb6 {
[%emt 0:02:18]} 25. Ne5 {[%emt 0:17:52]} Rac8 {[%emt 0:00:36]} 26. Bg4 {
[%emt 0:02:44]} f5 {[%emt 0:01:05]} 27. Bf3 {[%emt 0:01:44]} Kg7 {[%emt 0:00:
00]} 28. g4 {[%emt 0:03:22]} Nc4 {[%emt 0:00:02]} 29. Nxc4 {[%emt 0:00:13]}
dxc4 {[%emt 0:00:02]} 30. Qd1 {[%emt 0:00:06]} Bb4 {[%emt 0:02:22]} 31. Na2 {
[%emt 0:00:56]} Bxa4 {[%emt 0:00:00]} 1-0

[Event "44th Chess Olympiad Women 2022"]
[Site "Chennai"]
[Date "2022.07.29"]
[Round "1.48"]
[White "Sy Mame, Binta"]
[Black "Stanford, Sheila Barth"]
[Result "0-1"]
[WhiteElo "1256"]
[BlackElo "2097"]
[Annotator "NA"]
[PlyCount "39"]
[EventDate "2022.??.??"]
[TimeControl "60"]

1. e3 {[%emt 0:00:06]} Nf6 {[%emt 0:00:41]} 2. d3 {[%emt 0:02:16]} d5 {[%emt 0:
00:00]} 3. a3 {[%emt 0:02:17]} Bf5 {[%emt 0:01:42]} 4. h3 {[%emt 0:03:32]} h5 {
[%emt 0:01:11]} 5. Be2 {[%emt 0:05:37]} c5 {[%emt 0:00:18]} 6. Bd2 {[%emt 0:00:
00]} Nc6 {[%emt 0:00:39]} 7. Bf3 {[%emt 0:07:01]} e5 {[%emt 0:00:56]} 8. Nc3 {
[%emt 0:29:03]} e4 {[%emt 0:05:44]} 9. dxe4 {[%emt 0:07:42]} dxe4 {[%emt 0:00:
00]} 10. Be2 {[%emt 0:01:26]} a6 {[%emt 0:04:22]} 11. f3 {[%emt 0:02:16]} exf3
{[%emt 0:02:50]} 12. Nxf3 {[%emt 0:04:26]} Qd6 {[%emt 0:10:16]} 13. Kf2 {
[%emt 0:07:40]} O-O-O {[%emt 0:05:20]} 14. Ng5 {[%emt 0:03:51]} Ne5 {[%emt 0:
00:00]} 15. e4 {[%emt 0:05:40]} Nxe4+ {[%emt 0:11:18]} 16. Ncxe4 {[%emt 0:00:
00]} Bxe4 {[%emt 0:00:04]} 17. Nxe4 {[%emt 0:00:25]} Qd4+ {[%emt 0:00:15]} 18.
Be3 {[%emt 0:02:22]} Qxe4 {[%emt 0:00:08]} 19. Bf3 {[%emt 0:05:57]} Qh4+ {
[%emt 0:05:46]} 20. g3 {[%emt 0:00:00]} 0-1

[Event "44th Chess Olympiad Women 2022"]
[Site "Chennai"]
[Date "2022.07.29"]
[Round "1.49"]
[White "De Rycke, Tyani"]
[Black "Sisior, Angelil"]
[Result "1-0"]
[WhiteElo "1994"]
[BlackElo "1488"]
[Annotator "NA"]
[PlyCount "65"]
[EventDate "2022.??.??"]
[TimeControl "60"]

1. e4 {[%emt 0:00:03]} b6 {[%emt 0:00:15]} 2. Nc3 {[%emt 0:00:10]} c5 {[%emt 0:
00:00]} 3. g3 {[%emt 0:00:08]} Nc6 {[%emt 0:00:48]} 4. Bg2 {[%emt 0:00:10]} e5
{[%emt 0:01:33]} 5. d3 {[%emt 0:00:28]} Be7 {[%emt 0:01:13]} 6. Be3 {[%emt 0:
00:00]} Nf6 {[%emt 0:00:18]} 7. h3 {[%emt 0:00:13]} Ba6 {[%emt 0:01:17]} 8. Qd2
{[%emt 0:03:06]} O-O {[%emt 0:02:01]} 9. Nge2 {[%emt 0:00:15]} b5 {[%emt 0:00:
00]} 10. O-O {[%emt 0:01:31]} d6 {[%emt 0:01:00]} 11. f4 {[%emt 0:00:29]} Nd4 {
[%emt 0:02:01]} 12. f5 {[%emt 0:00:46]} b4 {[%emt 0:06:28]} 13. Nd1 {[%emt 0:
00:00]} Bb7 {[%emt 0:03:58]} 14. g4 {[%emt 0:00:57]} d5 {[%emt 0:04:42]} 15.
Ng3 {[%emt 0:01:23]} Kh8 {[%emt 0:06:54]} 16. g5 {[%emt 0:01:00]} Ng8 {[%emt 0:
00:00]} 17. c3 {[%emt 0:00:18]} Nb5 {[%emt 0:03:44]} 18. exd5 {[%emt 0:01:03]}
Nd4 {[%emt 0:07:28]} 19. d6 {[%emt 0:06:32]} Bxg2 {[%emt 0:00:55]} 20. dxe7 {
[%emt 0:00:12]} Nxe7 {[%emt 0:04:14]} 21. Qxg2 {[%emt 0:00:12]} Nd5 {[%emt 0:
00:00]} 22. cxd4 {[%emt 0:00:36]} cxd4 {[%emt 0:00:10]} 23. Bd2 {[%emt 0:01:16]
} Rc8 {[%emt 0:02:44]} 24. Rc1 {[%emt 0:00:35]} Rxc1 {[%emt 0:00:33]} 25. Bxc1
{[%emt 0:00:08]} Qa5 {[%emt 0:00:12]} 26. f6 {[%emt 0:01:15]} g6 {[%emt 0:00:
00]} 27. Qe4 {[%emt 0:01:04]} Re8 {[%emt 0:06:17]} 28. h4 {[%emt 0:00:42]} Re6
{[%emt 0:03:20]} 29. h5 {[%emt 0:00:48]} Qc7 {[%emt 0:01:05]} 30. Qxd5 {
[%emt 0:00:35]} Re8 {[%emt 0:00:59]} 31. hxg6 {[%emt 0:00:22]} hxg6 {[%emt 0:
00:00]} 32. Qh1+ {[%emt 0:00:08]} Kg8 {[%emt 0:00:13]} 33. Qh6 {[%emt 0:00:06]}
1-0

[Event "44th Chess Olympiad Women 2022"]
[Site "Chennai"]
[Date "2022.07.29"]
[Round "1.49"]
[White "Magno, Angelica"]
[Black "Vanduyfhuys, Daria"]
[Result "0-1"]
[WhiteElo "1211"]
[BlackElo "2094"]
[Annotator "NA"]
[PlyCount "50"]
[EventDate "2022.??.??"]
[TimeControl "60"]

1. d4 {[%emt 0:00:06]} d5 {[%emt 0:00:23]} 2. c4 {[%emt 0:00:23]} e6 {[%emt 0:
00:00]} 3. Nf3 {[%emt 0:00:20]} Nf6 {[%emt 0:01:15]} 4. g3 {[%emt 0:01:03]}
dxc4 {[%emt 0:00:30]} 5. Bg2 {[%emt 0:00:53]} Bb4+ {[%emt 0:06:32]} 6. Bd2 {
[%emt 0:00:37]} Nd5 {[%emt 0:05:21]} 7. O-O {[%emt 0:01:00]} Nc6 {[%emt 0:00:
00]} 8. e4 {[%emt 0:02:03]} Nb6 {[%emt 0:00:20]} 9. Bxb4 {[%emt 0:09:40]} Nxb4
{[%emt 0:00:07]} 10. Qe2 {[%emt 0:03:35]} O-O {[%emt 0:03:03]} 11. Nbd2 {
[%emt 0:00:19]} Nc2 {[%emt 0:01:05]} 12. Rad1 {[%emt 0:00:57]} Nxd4 {[%emt 0:
00:00]} 13. Nxd4 {[%emt 0:00:50]} Qxd4 {[%emt 0:00:06]} 14. Nb3 {[%emt 0:11:38]
} Qf6 {[%emt 0:01:50]} 15. e5 {[%emt 0:04:48]} Qe7 {[%emt 0:00:38]} 16. Na5 {
[%emt 0:01:31]} Qb4 {[%emt 0:07:43]} 17. Nxb7 {[%emt 0:05:26]} Nd5 {[%emt 0:00:
00]} 18. a3 {[%emt 0:04:50]} Qxb7 {[%emt 0:00:41]} 19. Qxc4 {[%emt 0:08:12]}
Qb6 {[%emt 0:02:47]} 20. Rd2 {[%emt 0:06:14]} Ba6 {[%emt 0:00:11]} 21. Qc1 {
[%emt 0:06:21]} Bxf1 {[%emt 0:00:10]} 22. Qxf1 {[%emt 0:00:18]} Rad8 {[%emt 0:
00:00]} 23. Qe1 {[%emt 0:04:21]} Rd7 {[%emt 0:00:35]} 24. Bf3 {[%emt 0:01:33]}
Rfd8 {[%emt 0:00:20]} 25. Kg2 {[%emt 0:00:58]} Nf4+ {[%emt 0:00:21]} 0-1

[Event "44th Chess Olympiad Women 2022"]
[Site "Chennai"]
[Date "2022.07.29"]
[Round "1.49"]
[White "Sisior, Destiny"]
[Black "Barbier, Wiebke"]
[Result "0-1"]
[WhiteElo "1298"]
[BlackElo "1970"]
[Annotator "NA"]
[PlyCount "60"]
[EventDate "2022.??.??"]
[TimeControl "60"]

1. e4 {[%emt 0:00:07]} d6 {[%emt 0:00:01]} 2. Nf3 {[%emt 0:00:28]} Nf6 {
[%emt 0:00:06]} 3. Nc3 {[%emt 0:00:18]} e5 {[%emt 0:00:06]} 4. Bc4 {[%emt 0:00:
00]} Be7 {[%emt 0:00:24]} 5. d4 {[%emt 0:00:41]} Nbd7 {[%emt 0:01:59]} 6. Be3 {
[%emt 0:01:27]} O-O {[%emt 0:00:16]} 7. Qd2 {[%emt 0:00:33]} c6 {[%emt 0:00:13]
} 8. d5 {[%emt 0:01:13]} Ng4 {[%emt 0:04:43]} 9. h3 {[%emt 0:02:27]} Nxe3 {
[%emt 0:00:05]} 10. Qxe3 {[%emt 0:00:04]} Nf6 {[%emt 0:00:34]} 11. O-O-O {
[%emt 0:01:38]} b5 {[%emt 0:00:59]} 12. Bd3 {[%emt 0:01:05]} b4 {[%emt 0:00:23]
} 13. Ne2 {[%emt 0:01:49]} c5 {[%emt 0:00:36]} 14. c3 {[%emt 0:01:03]} a5 {
[%emt 0:01:52]} 15. g4 {[%emt 0:01:17]} a4 {[%emt 0:04:44]} 16. Nh4 {[%emt 0:
00:00]} Nxd5 {[%emt 0:05:16]} 17. Qf3 {[%emt 0:00:47]} Nxc3 {[%emt 0:01:23]}
18. bxc3 {[%emt 0:01:09]} Bxh4 {[%emt 0:00:06]} 19. c4 {[%emt 0:00:45]} Be6 {
[%emt 0:01:47]} 20. Ng3 {[%emt 0:02:44]} Bg5+ {[%emt 0:01:47]} 21. Kb2 {
[%emt 0:00:33]} a3+ {[%emt 0:00:49]} 22. Ka1 {[%emt 0:00:53]} Qa5 {[%emt 0:00:
00]} 23. Bc2 {[%emt 0:00:51]} Bxc4 {[%emt 0:01:02]} 24. Rxd6 {[%emt 0:00:45]}
Rad8 {[%emt 0:00:35]} 25. Rhd1 {[%emt 0:00:28]} Rxd6 {[%emt 0:02:20]} 26. Rxd6
{[%emt 0:00:58]} Rd8 {[%emt 0:00:10]} 27. Rd1 {[%emt 0:00:54]} Rxd1+ {[%emt 0:
00:00]} 28. Bxd1 {[%emt 0:00:36]} Qd8 {[%emt 0:00:18]} 29. Nf1 {[%emt 0:04:10]}
Qd4+ {[%emt 0:00:12]} 30. Kb1 {[%emt 0:01:48]} Qb2# {[%emt 0:00:06]} 0-1

[Event "44th Chess Olympiad Women 2022"]
[Site "Chennai"]
[Date "2022.07.29"]
[Round "1.50"]
[White "Alhasan, Zainah"]
[Black "Jansone, Melanija Luize"]
[Result "0-1"]
[WhiteElo "1095"]
[BlackElo "1584"]
[Annotator "NA RC"]
[PlyCount "80"]
[EventDate "2022.??.??"]
[TimeControl "60"]

1. e4 {[%emt 0:00:03]} d6 {[%emt 0:00:06]} 2. d4 {[%emt 0:00:15]} Nf6 {[%emt 0:
00:00]} 3. Nc3 {[%emt 0:00:12]} g6 {[%emt 0:00:08]} 4. Nf3 {[%emt 0:00:15]} Bg7
{[%emt 0:00:07]} 5. Be3 {[%emt 0:00:11]} c6 {[%emt 0:00:13]} 6. Bd3 {[%emt 0:
00:00]} Qa5 {[%emt 0:01:07]} 7. Qd2 {[%emt 0:00:33]} Ng4 {[%emt 0:03:51]} 8.
O-O {[%emt 0:00:25]} Nxe3 {[%emt 0:00:08]} 9. fxe3 {[%emt 0:00:15]} e5 {
[%emt 0:00:38]} 10. Qf2 {[%emt 0:00:59]} O-O {[%emt 0:00:34]} 11. Ng5 {[%emt 0:
00:00]} exd4 {[%emt 0:01:14]} 12. exd4 {[%emt 0:00:50]} Qxg5 {[%emt 0:00:09]}
13. Bc4 {[%emt 0:00:48]} Be6 {[%emt 0:01:47]} 14. Bxe6 {[%emt 0:01:11]} fxe6 {
[%emt 0:00:06]} 15. Qg3 {[%emt 0:01:20]} Bxd4+ {[%emt 0:00:34]} 16. Kh1 {
[%emt 0:00:25]} Qxg3 {[%emt 0:00:08]} 17. Rxf8+ {[%emt 0:00:16]} Kxf8 {[%emt 0:
00:00]} 18. hxg3 {[%emt 0:00:09]} Nd7 {[%emt 0:00:40]} 19. Rd1 {[%emt 0:00:35]}
Be5 {[%emt 0:00:14]} 20. Rd3 {[%emt 0:01:07]} Nc5 {[%emt 0:00:59]} 21. Rf3+ {
[%emt 0:00:32]} Ke7 {[%emt 0:00:24]} 22. Kg1 {[%emt 0:00:44]} Bxc3 {[%emt 0:00:
00]} 23. Rxc3 {[%emt 0:00:19]} Nxe4 {[%emt 0:00:07]} 24. Re3 {[%emt 0:00:35]}
d5 {[%emt 0:00:36]} 25. Kf1 {[%emt 0:00:44]} Rf8+ {[%emt 0:00:39]} 26. Ke2 {
[%emt 0:00:24]} Rf2+ {[%emt 0:00:16]} 27. Kd1 {[%emt 0:00:37]} Rd2+ {[%emt 0:
00:00]} 28. Kc1 {[%emt 0:00:26]} Rxg2 {[%emt 0:00:08]} 29. b3 {[%emt 0:01:02]}
Rg1+ {[%emt 0:01:36]} 30. Kb2 {[%emt 0:00:18]} Rxg3 {[%emt 0:00:02]} 31. Rxg3 {
[%emt 0:00:30]} Nxg3 {[%emt 0:00:05]} 32. Kc3 {[%emt 0:00:23]} h5 {[%emt 0:00:
00]} 33. Kd2 {[%emt 0:00:21]} h4 {[%emt 0:00:17]} 34. Ke1 {[%emt 0:00:25]} h3 {
[%emt 0:00:15]} 35. Kf2 {[%emt 0:00:07]} h2 {[%emt 0:00:08]} 36. Kxg3 {[%emt 0:
00:00]} h1=Q {[%emt 0:00:10]} 37. Kf4 {[%emt 0:00:55]} Qe4+ {[%emt 0:00:29]}
38. Kg5 {[%emt 0:00:12]} Qf5+ {[%emt 0:00:18]} 39. Kh6 {[%emt 0:00:12]} Qf4+ {
[%emt 0:00:33]} 40. Kh7 {[%emt 0:00:13]} Kf7 {[%emt 0:00:18]} 0-1

[Event "44th Chess Olympiad Women 2022"]
[Site "Chennai"]
[Date "2022.07.29"]
[Round "1.50"]
[White "Nema, Rabab Ahmed"]
[Black "Berzina, Ilze"]
[Result "0-1"]
[WhiteElo "1172"]
[BlackElo "2141"]
[Annotator "NA"]
[PlyCount "86"]
[EventDate "2022.??.??"]
[TimeControl "60"]

1. d4 {[%emt 0:00:45]} d5 {[%emt 0:00:35]} 2. c4 {[%emt 0:00:11]} c6 {[%emt 0:
00:00]} 3. Nc3 {[%emt 0:00:11]} e6 {[%emt 0:01:07]} 4. Nf3 {[%emt 0:00:31]}
dxc4 {[%emt 0:00:23]} 5. a4 {[%emt 0:01:05]} Bb4 {[%emt 0:00:30]} 6. e3 {
[%emt 0:00:53]} b5 {[%emt 0:00:32]} 7. axb5 {[%emt 0:09:09]} cxb5 {[%emt 0:00:
00]} 8. Bd2 {[%emt 0:03:07]} Bxc3 {[%emt 0:01:07]} 9. bxc3 {[%emt 0:00:42]} Nf6
{[%emt 0:01:54]} 10. Qc2 {[%emt 0:02:17]} Bb7 {[%emt 0:01:44]} 11. Be2 {
[%emt 0:03:28]} O-O {[%emt 0:00:22]} 12. O-O {[%emt 0:00:39]} Nbd7 {[%emt 0:00:
00]} 13. Bc1 {[%emt 0:03:13]} Qc7 {[%emt 0:02:46]} 14. Nd2 {[%emt 0:04:22]} Nd5
{[%emt 0:05:32]} 15. e4 {[%emt 0:12:04]} Nf4 {[%emt 0:00:17]} 16. Nf3 {[%emt 0:
00:00]} Nf6 {[%emt 0:04:10]} 17. e5 {[%emt 0:10:07]} Be4 {[%emt 0:03:20]} 18.
Qb2 {[%emt 0:03:53]} N6d5 {[%emt 0:02:55]} 19. Rd1 {[%emt 0:11:14]} Nxe2+ {
[%emt 0:01:19]} 20. Qxe2 {[%emt 0:02:08]} Nxc3 {[%emt 0:00:13]} 21. Qe3 {
[%emt 0:02:19]} Bxf3 {[%emt 0:00:34]} 22. Qxf3 {[%emt 0:00:31]} Nxd1 {[%emt 0:
00:00]} 23. Qxd1 {[%emt 0:00:13]} f5 {[%emt 0:03:12]} 24. Ba3 {[%emt 0:01:52]}
Rfd8 {[%emt 0:00:09]} 25. Bd6 {[%emt 0:00:21]} Rxd6 {[%emt 0:00:19]} 26. exd6 {
[%emt 0:00:24]} Qxd6 {[%emt 0:00:10]} 27. Qe2 {[%emt 0:04:05]} a5 {[%emt 0:00:
00]} 28. Rb1 {[%emt 0:02:43]} Qd5 {[%emt 0:01:11]} 29. Re1 {[%emt 0:03:26]} b4
{[%emt 0:01:33]} 30. Qxe6+ {[%emt 0:00:17]} Qxe6 {[%emt 0:00:06]} 31. Rxe6 {
[%emt 0:00:09]} Rd8 {[%emt 0:00:18]} 32. Kf1 {[%emt 0:02:43]} Rxd4 {[%emt 0:00:
00]} 33. Ra6 {[%emt 0:00:51]} c3 {[%emt 0:00:15]} 34. Rc6 {[%emt 0:00:53]} b3 {
[%emt 0:00:29]} 35. Rxc3 {[%emt 0:00:38]} b2 {[%emt 0:00:10]} 36. Rb3 {[%emt 0:
00:00]} Rb4 {[%emt 0:00:11]} 37. Rxb4 {[%emt 0:01:41]} axb4 {[%emt 0:00:07]}
38. Ke2 {[%emt 0:00:35]} b1=Q {[%emt 0:00:11]} 39. f4 {[%emt 0:00:13]} Qc2+ {
[%emt 0:00:17]} 40. Kf3 {[%emt 0:00:17]} Qe4+ {[%emt 0:00:39]} 41. Kg3 {
[%emt 0:30:23]} Qe3+ {[%emt 0:30:15]} 42. Kh4 {[%emt 0:00:17]} Qxf4+ {[%emt 0:
00:00]} 43. Kh3 {[%emt 0:00:31]} Qg4# {[%emt 0:00:38]} 0-1